fUST/lending_fUST_20250220
["ID","MTS","AMOUNT","RATE_DAILY","PERIOD"]
[353700855,1739993456823,-764.21,0.00014767,2]
[353700856,1739993456833,-1647.02,0.00014767,2]
[353700857,1739993456844,-2276.69,0.00014767,2]
[353700858,1739993456854,-3082.34,0.00014767,2]
[353700859,1739993456863,-619.22,0.00014767,2]
[353700860,1739993456872,-252.68,0.00014767,2]
[353700861,1739993456882,-500.0,0.00014767,2]
[353700862,1739993456891,-23157.7,0.00014767,2]
[353700863,1739993456901,-910.45,0.00014767,2]
[353700864,1739993456912,-500.0,0.00014799,2]
[353700865,1739993456922,-1183.40155707,0.000148,2]
[353700866,1739993456931,-569.92789718,0.000148,2]
[353700867,1739993456941,-63509.7951512,0.000148,2]
[353700868,1739993456950,-500.0,0.00014849,2]
[353700869,1739993456958,-500.0,0.00014849,2]
[353700870,1739993456968,-547.96,0.00014849,2]
[353700871,1739993456978,-500.0,0.00014849,2]
[353700872,1739993456987,-197.81813284,0.00014849,2]
[353700873,1739993456996,-205.63443022,0.00014849,2]
[353700874,1739993457006,-512.6,0.00014849,2]
[353700875,1739993457015,-151.0,0.00014849,2]
[353700876,1739993457025,-789.616638,0.00014849,2]
[353700877,1739993457035,-789.616638,0.00014849,2]
[353700878,1739993457044,-508.73,0.00014849,2]
[353700879,1739993457053,-500.0,0.00014849,2]
[353700880,1739993457063,-151.0,0.00014849,2]
[353700881,1739993457073,-500.0,0.00014849,2]
[353700882,1739993457080,-578.16,0.00014849,2]
[353700883,1739993457087,-691.97,0.00014849,2]
[353700884,1739993457096,-500.0,0.00014849,2]
[353700885,1739993457106,-1104.41,0.00014849,2]
[353700886,1739993457116,-3005.91,0.00014849,2]
[353700887,1739993457126,-1060.38,0.00014849,2]
[353700888,1739993457136,-8839.34,0.00014849,2]
[353700889,1739993457146,-1056.78,0.00014849,2]
[353700890,1739993457156,-722.94,0.00014849,2]
[353700891,1739993457165,-450.0,0.00014849,2]
[353700892,1739993457175,-500.0,0.00014849,2]
[353700893,1739993457184,-450.0,0.00014849,2]
[353700894,1739993457193,-1113.6,0.00014849,2]
[353700895,1739993457204,-1442.621722,0.00014849,2]
[353700896,1739993457213,-1442.621722,0.00014849,2]
[353700897,1739993457222,-500.0,0.00014849,2]
[353700898,1739993457235,-732.67,0.00014849,2]
[353700899,1739993457244,-764.39,0.00014849,2]
[353700900,1739993457257,-1945.72,0.00014849,2]
[353700901,1739993457266,-157.736779,0.00014849,2]
[353700902,1739993457275,-1096.96,0.00014849,2]
[353700903,1739993457285,-939.03,0.00014849,2]
[353700904,1739993457295,-2183.99,0.00014849,2]
[353700905,1739993457305,-5846.13,0.00014849,2]
[353700906,1739993457316,-2082.11,0.00014849,2]
[353700907,1739993457327,-8474.38,0.00014849,2]
[353700908,1739993457336,-1201.82,0.00014849,2]
[353700909,1739993457345,-565.8,0.00014849,2]
[353700910,1739993457355,-1256.69,0.00014849,2]
[353700911,1739993457365,-1193.06,0.00014849,2]
[353700912,1739993457374,-764.21,0.00014849,2]
[353700913,1739993457383,-1647.02,0.00014849,2]
[353700914,1739993457393,-1623.222034,0.00014849,2]
[353700915,1739993457403,-1623.222034,0.00014849,2]
[353700916,1739993457413,-2276.69,0.00014849,2]
[353700917,1739993457423,-3082.34,0.00014849,2]
[353700918,1739993457432,-619.22,0.00014849,2]
[353700919,1739993457441,-151.0,0.00014849,2]
[353700920,1739993457451,-500.0,0.00014849,2]
[353700921,1739993457461,-23157.7,0.00014849,2]
[353700922,1739993457471,-910.45,0.00014849,2]
[353700923,1739993457480,-151.0,0.000149,2]
[353700924,1739993457489,-151.0,0.000149,2]
[353700925,1739993457499,-151.0,0.000149,2]
[353700926,1739993457508,-184.882004,0.000149,2]
[353700927,1739993457518,-184.882004,0.000149,2]
[353700928,1739993457526,-151.0,0.000149,2]
[353700929,1739993457536,-789.616638,0.000149,2]
[353700930,1739993457545,-789.616638,0.000149,2]
[353700931,1739993457556,-364.184848,0.000149,2]
[353700932,1739993457565,-364.184848,0.000149,2]
[353700933,1739993457574,-151.0,0.000149,2]
[353700934,1739993457584,-151.0,0.000149,2]
[353700935,1739993457595,-1339.774645,0.000149,2]
[353700936,1739993457604,-1339.774645,0.000149,2]
[353700937,1739993457614,-4752.4458,0.000149,2]
[353700938,1739993457623,-4752.4458,0.000149,2]
[353700939,1739993457632,-151.0,0.000149,2]
[353700940,1739993457641,-450.0,0.000149,2]
[353700941,1739993457651,-672.359079,0.000149,2]
[353700942,1739993457662,-218.184773,0.000149,2]
[353700943,1739993457672,-450.0,0.000149,2]
[353700944,1739993457681,-672.359079,0.000149,2]
[353700945,1739993457692,-218.184773,0.000149,2]
[353700946,1739993457701,-1049.066856,0.000149,2]
[353700947,1739993457711,-1049.066856,0.000149,2]
[353700948,1739993457721,-576.863411,0.000149,2]
[353700949,1739993457731,-691.309199,0.000149,2]
[353700950,1739993457741,-576.863411,0.000149,2]
[353700951,1739993457751,-691.309199,0.000149,2]
[353700952,1739993457761,-582577.00775431,0.000149,2]
[353700953,1739993457895,-596.59801914,0.000149,2]
[353700954,1739993457910,-674.62973335,0.000149,2]
[353700955,1739993458046,-510.05322167,0.00013698,2]
[353700956,1739993458056,-500.0,0.00013698,2]
[353700957,1739993458065,-500.0,0.00013698,2]
[353700958,1739993458075,-500.0,0.00013698,2]
[353700959,1739993458083,-500.0,0.00013698,2]
[353700960,1739993458094,-500.0,0.0001378,2]
[353700961,1739993458102,-500.0,0.0001378,2]
[353700962,1739993458111,-500.0,0.00013863,2]
[353700963,1739993458120,-360.58575571,0.00013863,2]
[353700964,1739993458227,-500.0,0.00013945,2]
[353700965,1739993458240,-503.50174926,0.00014027,2]
[353700966,1739993458251,-325.92,0.00014438,2]
[353700967,1739993458261,-27267.9105602,0.000149,2]
[353700968,1739993458270,-1442.621722,0.000149,2]
[353700969,1739993458281,-1442.621722,0.000149,2]
[353700970,1739993458291,-1062.816669,0.000149,2]
[353700971,1739993458300,-1062.816669,0.000149,2]
[353700972,1739993458309,-1623.222034,0.000149,2]
[353700973,1739993458321,-1623.222034,0.000149,2]
[353700974,1739993458331,-151.0,0.000149,2]
[353700975,1739993458341,-152.0,0.00014907,2]
[353700976,1739993458350,-500.0,0.00014931,2]
[353700977,1739993458360,-500.0,0.00014931,2]
[353700978,1739993458370,-500.0,0.00014931,2]
[353700979,1739993458379,-512.6,0.00014931,2]
[353700980,1739993458390,-508.73,0.00014931,2]
[353700981,1739993458400,-585.92,0.00014931,2]
[353700982,1739993458412,-500.0,0.00014931,2]
[353700983,1739993458422,-578.16,0.00014931,2]
[353700984,1739993458432,-691.97,0.00014931,2]
[353700985,1739993458442,-1104.41,0.00014931,2]
[353700986,1739993458452,-3005.91,0.00014931,2]
[353700987,1739993458463,-1060.38,0.00014931,2]
[353700988,1739993458473,-8839.34,0.00014931,2]
[353700989,1739993458483,-1056.78,0.00014931,2]
[353700990,1739993458494,-722.94,0.00014931,2]
[353700991,1739993458503,-500.0,0.00014931,2]
[353700992,1739993458513,-1113.6,0.00014931,2]
[353700993,1739993458524,-500.0,0.00014931,2]
[353700994,1739993458533,-732.67,0.00014931,2]
[353700995,1739993458543,-764.39,0.00014931,2]
[353700996,1739993458554,-1945.72,0.00014931,2]
[353700997,1739993458564,-1096.96,0.00014931,2]
[353700998,1739993458575,-939.03,0.00014931,2]
[353700999,1739993458585,-229.907001,0.00014931,2]
[353701000,1739993458596,-229.907001,0.00014931,2]
[353701001,1739993458606,-2183.99,0.00014931,2]
[353701002,1739993458616,-483.051078,0.00014931,2]
[353701003,1739993458626,-5846.13,0.00014931,2]
[353701004,1739993458637,-483.051078,0.00014931,2]
[353701005,1739993458647,-2082.11,0.00014931,2]
[353701006,1739993458657,-8474.38,0.00014931,2]
[353701007,1739993458668,-1201.82,0.00014931,2]
[353701008,1739993458679,-565.8,0.00014931,2]
[353701009,1739993458688,-1256.69,0.00014931,2]
[353701010,1739993458699,-1193.06,0.00014931,2]
[353701011,1739993458710,-764.21,0.00014931,2]
[353701012,1739993458719,-1647.02,0.00014931,2]
[353701013,1739993458729,-2276.69,0.00014931,2]
[353701014,1739993458739,-3082.34,0.00014931,2]
[353701015,1739993458748,-619.22,0.00014931,2]
[353701016,1739993458760,-9025.878337,0.00014931,2]
[353701017,1739993458771,-9025.878337,0.00014931,2]
[353701018,1739993458782,-23157.7,0.00014931,2]
[353701019,1739993458792,-910.45,0.00014931,2]
[353701020,1739993458803,-150.0,0.00014973,2]
[353701021,1739993458813,-1000.0,0.00015,15]
[353701022,1739993458823,-151.0,0.00015,2]
[353701023,1739993458833,-1002.2,0.00015,2]
[353701024,1739993458842,-113401.81468915,0.00015,2]
[353701025,1739993458851,-845.977203,0.00015,2]
[353701026,1739993458861,-17003.0,0.00015,2]
[353701027,1739993458871,-587.0,0.00015009,2]
[353701028,1739993458880,-500.0,0.00015013,2]
[353701029,1739993458890,-500.0,0.00015013,2]
[353701030,1739993458899,-500.0,0.00015013,2]
[353701031,1739993458910,-512.6,0.00015013,2]
[353701032,1739993458919,-508.73,0.00015013,2]
[353701033,1739993458929,-500.0,0.00015013,2]
[353701034,1739993458938,-578.16,0.00015013,2]
[353701035,1739993458947,-691.97,0.00015013,2]
[353701036,1739993458956,-1104.41,0.00015013,2]
[353701037,1739993458965,-3005.91,0.00015013,2]
[353701038,1739993458974,-1060.38,0.00015013,2]
[353701039,1739993458983,-8839.34,0.00015013,2]
[353701040,1739993458992,-1056.78,0.00015013,2]
[353701041,1739993459001,-722.94,0.00015013,2]
[353701042,1739993459010,-500.0,0.00015013,2]
[353701043,1739993459020,-1113.6,0.00015013,2]
[353701044,1739993459030,-500.0,0.00015013,2]
[353701045,1739993459039,-732.67,0.00015013,2]
[353701046,1739993459048,-764.39,0.00015013,2]
[353701047,1739993459057,-1945.72,0.00015013,2]
[353701048,1739993459066,-1096.96,0.00015013,2]
[353701049,1739993459075,-939.03,0.00015013,2]
[353701050,1739993459084,-2183.99,0.00015013,2]
[353701051,1739993459095,-5846.13,0.00015013,2]
[353701052,1739993459105,-2082.11,0.00015013,2]
[353701053,1739993459115,-8474.38,0.00015013,2]
[353701054,1739993459124,-1201.82,0.00015013,2]
[353701055,1739993459133,-565.8,0.00015013,2]
[353701056,1739993459143,-1256.69,0.00015013,2]
[353701057,1739993459152,-1193.06,0.00015013,2]
[353701058,1739993459164,-764.21,0.00015013,2]
[353701059,1739993459173,-1647.02,0.00015013,2]
[353701060,1739993459181,-1623.222034,0.00015013,2]
[353701061,1739993459190,-1623.222033,0.00015013,2]
[353701062,1739993459200,-2276.69,0.00015013,2]
[353701063,1739993459208,-3082.34,0.00015013,2]
[353701064,1739993459217,-619.22,0.00015013,2]
[353701065,1739993459227,-151.0,0.00015013,2]
[353701066,1739993459239,-23157.7,0.00015013,2]
[353701067,1739993459249,-910.45,0.00015013,2]
[353701068,1739993459257,-500.0,0.00015095,2]
[353701069,1739993459266,-500.0,0.00015095,2]
[353701070,1739993459275,-500.0,0.00015095,2]
[353701071,1739993459284,-512.6,0.00015095,2]
[353701072,1739993459294,-508.73,0.00015095,2]
[353701073,1739993459303,-500.0,0.00015095,2]
[353701074,1739993459313,-578.16,0.00015095,2]
[353701075,1739993459323,-691.97,0.00015095,2]
[353701076,1739993459332,-1104.41,0.00015095,2]
[353701077,1739993459343,-3005.91,0.00015095,2]
[353701078,1739993459352,-1060.38,0.00015095,2]
[353701079,1739993459361,-8839.34,0.00015095,2]
[353701080,1739993459370,-1056.78,0.00015095,2]
[353701081,1739993459380,-722.94,0.00015095,2]
[353701082,1739993459389,-500.0,0.00015095,2]
[353701083,1739993459400,-1113.6,0.00015095,2]
[353701084,1739993459411,-500.0,0.00015095,2]
[353701085,1739993459420,-732.67,0.00015095,2]
[353701086,1739993459429,-764.39,0.00015095,2]
[353701087,1739993459438,-1945.72,0.00015095,2]
[353701088,1739993459447,-1096.96,0.00015095,2]
[353701089,1739993459456,-939.03,0.00015095,2]
[353701090,1739993459465,-2183.99,0.00015095,2]
[353701091,1739993459474,-5846.13,0.00015095,2]
[353701092,1739993459483,-2082.11,0.00015095,2]
[353701093,1739993459492,-8474.38,0.00015095,2]
[353701094,1739993459501,-1201.82,0.00015095,2]
[353701095,1739993459510,-565.8,0.00015095,2]
[353701096,1739993459519,-1256.69,0.00015095,2]
[353701097,1739993459530,-1193.06,0.00015095,2]
[353701098,1739993459540,-764.21,0.00015095,2]
[353701099,1739993459550,-1647.02,0.00015095,2]
[353701100,1739993459559,-2276.69,0.00015095,2]
[353701101,1739993459569,-3082.34,0.00015095,2]
[353701102,1739993459579,-619.22,0.00015095,2]
[353701103,1739993459588,-23157.7,0.00015095,2]
[353701104,1739993459597,-910.45,0.00015095,2]
[353701105,1739993459606,-500.0,0.00015178,2]
[353701106,1739993459615,-500.0,0.00015178,2]
[353701107,1739993459623,-500.0,0.00015178,2]
[353701108,1739993459633,-512.6,0.00015178,2]
[353701109,1739993459642,-508.73,0.00015178,2]
[353701110,1739993459652,-500.0,0.00015178,2]
[353701111,1739993459662,-578.16,0.00015178,2]
[353701112,1739993459671,-691.97,0.00015178,2]
[353701113,1739993459680,-1104.41,0.00015178,2]
[353701114,1739993459691,-3005.91,0.00015178,2]
[353701115,1739993459699,-1060.38,0.00015178,2]
[353701116,1739993459707,-8839.34,0.00015178,2]
[353701117,1739993459717,-1056.78,0.00015178,2]
[353701118,1739993459726,-722.94,0.00015178,2]
[353701119,1739993459736,-500.0,0.00015178,2]
[353701120,1739993459745,-1113.6,0.00015178,2]
[353701121,1739993459755,-1442.621722,0.00015178,2]
[353701122,1739993459765,-1442.621722,0.00015178,2]
[353701123,1739993459774,-500.0,0.00015178,2]
[353701124,1739993459783,-732.67,0.00015178,2]
[353701125,1739993459792,-764.39,0.00015178,2]
[353701126,1739993459802,-1945.72,0.00015178,2]
[353701127,1739993459811,-1096.96,0.00015178,2]
[353701128,1739993459821,-939.03,0.00015178,2]
[353701129,1739993459830,-229.907001,0.00015178,2]
[353701130,1739993459839,-229.907001,0.00015178,2]
[353701131,1739993459849,-2183.99,0.00015178,2]
[353701132,1739993459858,-483.051078,0.00015178,2]
[353701133,1739993459867,-5846.13,0.00015178,2]
[353701134,1739993459878,-483.051078,0.00015178,2]
[353701135,1739993459886,-2082.11,0.00015178,2]
[353701136,1739993459895,-8474.38,0.00015178,2]
[353701137,1739993459905,-1201.82,0.00015178,2]
[353701138,1739993459915,-565.8,0.00015178,2]
[353701139,1739993459925,-1256.69,0.00015178,2]
[353701140,1739993459934,-1193.06,0.00015178,2]
[353701141,1739993459943,-764.21,0.00015178,2]
[353701142,1739993459953,-1647.02,0.00015178,2]
[353701143,1739993459963,-2276.69,0.00015178,2]
[353701144,1739993459972,-3082.34,0.00015178,2]
[353701145,1739993459982,-619.22,0.00015178,2]
[353701146,1739993459991,-9025.878337,0.00015178,2]
[353701147,1739993460000,-9025.878337,0.00015178,2]
[353701148,1739993460009,-23157.7,0.00015178,2]
[353701149,1739993460018,-910.45,0.00015178,2]
[353701150,1739993460027,-1500.0,0.00015222,2]
[353701151,1739993460037,-644.4288868,0.00015222,2]
[353701152,1739993460050,-1500.0,0.00015222,2]
[353701153,1739993460060,-500.0,0.0001526,2]
[353701154,1739993460070,-500.0,0.0001526,2]
[353701155,1739993460079,-500.0,0.0001526,2]
[353701156,1739993460168,-512.6,0.0001526,2]
[353701157,1739993460178,-508.73,0.0001526,2]
[353701158,1739993460188,-151.0,0.0001526,2]
[353701159,1739993460197,-500.0,0.0001526,2]
[353701160,1739993460207,-578.16,0.0001526,2]
[353701161,1739993460218,-691.97,0.0001526,2]
[353701162,1739993460228,-1104.41,0.0001526,2]
[353701163,1739993460243,-3005.91,0.0001526,2]
[353701164,1739993460253,-1060.38,0.0001526,2]
[353701165,1739993460264,-8839.34,0.0001526,2]
[353701166,1739993460273,-1056.78,0.0001526,2]
[353701167,1739993460286,-722.94,0.0001526,2]
[353701168,1739993460295,-450.0,0.0001526,2]
[353701169,1739993460305,-232.14,0.0001526,2]
[353701170,1739993460315,-218.184773,0.0001526,2]
[353701171,1739993460326,-450.0,0.0001526,2]
[353701172,1739993460335,-1113.6,0.0001526,2]
[353701173,1739993460345,-218.184773,0.0001526,2]
[353701174,1739993460354,-576.863411,0.0001526,2]
[353701175,1739993460364,-576.863411,0.0001526,2]
[353701176,1739993460373,-500.0,0.0001526,2]
[353701177,1739993460381,-732.67,0.0001526,2]
[353701178,1739993460390,-764.39,0.0001526,2]
[353701179,1739993460400,-1945.72,0.0001526,2]
[353701180,1739993460410,-1062.816669,0.0001526,2]
[353701181,1739993460419,-1096.96,0.0001526,2]
[353701182,1739993460428,-1062.816669,0.0001526,2]
[353701183,1739993460437,-939.03,0.0001526,2]
[353701184,1739993460446,-2183.99,0.0001526,2]
[353701185,1739993460456,-5846.13,0.0001526,2]
[353701186,1739993460465,-2082.11,0.0001526,2]
[353701187,1739993460474,-8474.38,0.0001526,2]
[353701188,1739993460484,-1201.82,0.0001526,2]
[353701189,1739993460494,-565.8,0.0001526,2]
[353701190,1739993460503,-1256.69,0.0001526,2]
[353701191,1739993460514,-1193.06,0.0001526,2]
[353701192,1739993460524,-764.21,0.0001526,2]
[353701193,1739993460533,-1647.02,0.0001526,2]
[353701194,1739993460543,-2276.69,0.0001526,2]
[353701195,1739993460553,-3082.34,0.0001526,2]
[353701196,1739993460562,-619.22,0.0001526,2]
[353701197,1739993460572,-23157.7,0.0001526,2]
[353701198,1739993460582,-910.45,0.0001526,2]
[353701199,1739993460591,-1500.0,0.00015322,2]
[353701200,1739993460600,-500.0,0.00015342,2]
[353701201,1739993460611,-363.89266413,0.00015342,2]
[353701202,1739993460621,-500.0,0.00015342,2]
[353701203,1739993460631,-512.6,0.00015342,2]
[353701204,1739993460640,-508.73,0.00015342,2]
[353701205,1739993460650,-151.0,0.00015342,2]
[353701206,1739993460661,-1339.774645,0.00015342,2]
[353701207,1739993460671,-1339.774645,0.00015342,2]
[353701208,1739993460680,-4752.4458,0.00015342,2]
[353701209,1739993460690,-4752.4458,0.00015342,2]
[353701210,1739993460699,-500.0,0.00015342,2]
[353701211,1739993460708,-578.16,0.00015342,2]
[353701212,1739993460718,-691.97,0.00015342,2]
[353701213,1739993460728,-1104.41,0.00015342,2]
[353701214,1739993460738,-3005.91,0.00015342,2]
[353701215,1739993460748,-1060.38,0.00015342,2]
[353701216,1739993460757,-8839.34,0.00015342,2]
[353701217,1739993460767,-1056.78,0.00015342,2]
[353701218,1739993460777,-722.94,0.00015342,2]
[353701219,1739993460786,-672.359079,0.00015342,2]
[353701220,1739993460795,-672.359079,0.00015342,2]
[353701221,1739993460805,-1113.6,0.00015342,2]
[353701222,1739993460815,-691.309199,0.00015342,2]
[353701223,1739993460825,-691.309199,0.00015342,2]
[353701224,1739993460834,-173.7719771,0.00015342,2]
[353701225,1739993460843,-732.67,0.00015342,2]
[353701226,1739993460853,-764.39,0.00015342,2]
[353701227,1739993460864,-1945.72,0.00015342,2]
[353701228,1739993460873,-1096.96,0.00015342,2]
[353701229,1739993460883,-939.03,0.00015342,2]
[353701230,1739993460892,-229.907001,0.00015342,2]
[353701231,1739993460902,-229.907,0.00015342,2]
[353701232,1739993460913,-2183.99,0.00015342,2]
[353701233,1739993460922,-483.051078,0.00015342,2]
[353701234,1739993460933,-5846.13,0.00015342,2]
[353701235,1739993460943,-483.051079,0.00015342,2]
[353701236,1739993460952,-2082.11,0.00015342,2]
[353701237,1739993460962,-8474.38,0.00015342,2]
[353701238,1739993460971,-1201.82,0.00015342,2]
[353701239,1739993460980,-565.8,0.00015342,2]
[353701240,1739993460989,-1256.69,0.00015342,2]
[353701241,1739993460998,-1193.06,0.00015342,2]
[353701242,1739993461007,-764.21,0.00015342,2]
[353701243,1739993461015,-1647.02,0.00015342,2]
[353701244,1739993461024,-2276.69,0.00015342,2]
[353701245,1739993461034,-3082.34,0.00015342,2]
[353701246,1739993461043,-619.22,0.00015342,2]
[353701247,1739993461052,-9025.878337,0.00015342,2]
[353701248,1739993461061,-9025.87833784,0.00015342,2]
[353701249,1739993461070,-23157.7,0.00015342,2]
[353701250,1739993461079,-910.45,0.00015342,2]
[353701251,1739993461089,-156.75055816,0.00015424,2]
[353701252,1739993461098,-207.81,0.00015424,2]
[353701253,1739993461107,-512.6,0.00015424,2]
[353701254,1739993461116,-364.184848,0.00015424,2]
[353701255,1739993461125,-364.184848,0.00015424,2]
[353701256,1739993461134,-151.0,0.00015424,2]
[353701257,1739993461143,-508.73,0.00015424,2]
[353701258,1739993461152,-500.0,0.00015424,2]
[353701259,1739993461163,-578.16,0.00015424,2]
[353701260,1739993461171,-691.97,0.00015424,2]
[353701261,1739993461180,-1104.41,0.00015424,2]
[353701262,1739993461189,-3005.91,0.00015424,2]
[353701263,1739993461199,-1060.38,0.00015424,2]
[353701264,1739993461208,-8839.34,0.00015424,2]
[353701265,1739993461218,-1056.78,0.00015424,2]
[353701266,1739993461228,-722.94,0.00015424,2]
[353701267,1739993461239,-1113.6,0.00015424,2]
[353701268,1739993461249,-1049.066856,0.00015424,2]
[353701269,1739993461258,-1049.066856,0.00015424,2]
[353701270,1739993461268,-1442.621722,0.00015424,2]
[353701271,1739993461279,-1442.621717,0.00015424,2]
[353701272,1739993461289,-732.67,0.00015424,2]
[353701273,1739993461298,-764.39,0.00015424,2]
[353701274,1739993461307,-1945.72,0.00015424,2]
[353701275,1739993461317,-1096.96,0.00015424,2]
[353701276,1739993461327,-939.03,0.00015424,2]
[353701277,1739993461337,-2183.99,0.00015424,2]
[353701278,1739993461346,-5846.13,0.00015424,2]
[353701279,1739993461357,-2082.11,0.00015424,2]
[353701280,1739993461366,-8474.38,0.00015424,2]
[353701281,1739993461376,-1201.82,0.00015424,2]
[353701282,1739993461386,-565.8,0.00015424,2]
[353701283,1739993461395,-1256.69,0.00015424,2]
[353701284,1739993461404,-1193.06,0.00015424,2]
[353701285,1739993461415,-764.21,0.00015424,2]
[353701286,1739993461424,-1647.02,0.00015424,2]
[353701287,1739993461434,-2276.69,0.00015424,2]
[353701288,1739993461444,-3082.34,0.00015424,2]
[353701289,1739993461454,-619.22,0.00015424,2]
[353701290,1739993461464,-23157.7,0.00015424,2]
[353701291,1739993461473,-910.45,0.00015424,2]
[353701292,1739993461483,-151.0,0.000155,2]
[353701293,1739993461492,-512.6,0.00015506,2]
[353701294,1739993461502,-151.0,0.00015506,2]
[353701295,1739993461511,-789.616638,0.00015506,2]
[353701296,1739993461521,-789.616638,0.00015506,2]
[353701297,1739993461530,-508.73,0.00015506,2]
[353701298,1739993461540,-379.92677832,0.00015506,2]
[353701299,1739993461550,-578.16,0.00015506,2]
[353701300,1739993461559,-691.97,0.00015506,2]
[353701301,1739993461568,-1104.41,0.00015506,2]
[353701302,1739993461578,-3005.91,0.00015506,2]
[353701303,1739993461587,-1060.38,0.00015506,2]
[353701304,1739993461597,-8839.34,0.00015506,2]
[353701305,1739993461606,-1056.78,0.00015506,2]
[353701306,1739993461616,-722.94,0.00015506,2]
[353701307,1739993461626,-1113.6,0.00015506,2]
[353701308,1739993461636,-732.67,0.00015506,2]
[353701309,1739993461646,-764.39,0.00015506,2]
[353701310,1739993461655,-1945.72,0.00015506,2]
[353701311,1739993461665,-1096.96,0.00015506,2]
[353701312,1739993461673,-939.03,0.00015506,2]
[353701313,1739993461683,-2183.99,0.00015506,2]
[353701314,1739993461692,-5846.13,0.00015506,2]
[353701315,1739993461702,-2082.11,0.00015506,2]
[353701316,1739993461711,-8474.38,0.00015506,2]
[353701317,1739993461720,-1201.82,0.00015506,2]
[353701318,1739993461729,-565.8,0.00015506,2]
[353701319,1739993461739,-1256.69,0.00015506,2]
[353701320,1739993461748,-1193.06,0.00015506,2]
[353701321,1739993461758,-764.21,0.00015506,2]
[353701322,1739993461768,-1647.02,0.00015506,2]
[353701323,1739993461778,-2276.69,0.00015506,2]
[353701324,1739993461787,-3082.34,0.00015506,2]
[353701325,1739993461797,-619.22,0.00015506,2]
[353701326,1739993461806,-23157.7,0.00015506,2]
[353701327,1739993461815,-910.45,0.00015506,2]
[353701328,1739993461825,-250.0,0.00015521,2]
[353701329,1739993461834,-1097.04980234,0.00015522,2]
[353701330,1739993461844,-512.66,0.00015589,2]
[353701331,1739993461853,-508.83289199,0.00015589,2]
[353701332,1739993461863,-578.1757394,0.00015589,2]
[353701333,1739993461947,-692.05,0.00015589,2]
[353701334,1739993461958,-1104.46642689,0.00015589,2]
[353701335,1739993461967,-3005.91397874,0.00015589,2]
[353701336,1739993461976,-1060.44222728,0.00015589,2]
[353701337,1739993461985,-8839.39448207,0.00015589,2]
[353701338,1739993461995,-1056.80201952,0.00015589,2]
[353701339,1739993462004,-722.98641406,0.00015589,2]
[353701340,1739993462013,-1113.67139682,0.00015589,2]
[353701341,1739993462022,-732.81336587,0.00015589,2]
[353701342,1739993462032,-764.43159546,0.00015589,2]
[353701343,1739993462040,-1945.91474119,0.00015589,2]
[353701344,1739993462050,-1097.01799085,0.00015589,2]
[353701345,1739993462060,-939.07706573,0.00015589,2]
[353701346,1739993462069,-2184.1830646,0.00015589,2]
[353701347,1739993462079,-5846.14155046,0.00015589,2]
[353701348,1739993462089,-2082.12110362,0.00015589,2]
[353701349,1739993462099,-8474.42336621,0.00015589,2]
[353701350,1739993462108,-1201.98663562,0.00015589,2]
[353701351,1739993462118,-566.03,0.00015589,2]
[353701352,1739993462127,-1256.78,0.00015589,2]
[353701353,1739993462138,-1193.26244067,0.00015589,2]
[353701354,1739993462148,-764.40100684,0.00015589,2]